[Event "Late-Titled-Tuesday-Blitz-June-18-2024"]
[Site "Chess.com"]
[Date "2024.06.18"]
[Round "11"]
[White "JanistanTV"]
[Black "micke12a"]
[Result "1/2-1/2"]
[WhiteElo "2731"]
[BlackElo "2421"]
[TimeControl "180+1"]
[EndTime "16:07:40 PDT"]
[Termination "Game drawn - insufficient material"]

1. d4 {[%clk 0:03:00.9]} 1... Nf6 {[%clk 0:02:56.5]} 2. c4 {[%clk 0:03:00.8]}
2... g6 {[%clk 0:02:56.7]} 3. Nc3 {[%clk 0:03:00.2]} 3... d5 {[%clk 0:02:57.3]}
4. Nf3 {[%clk 0:02:59.4]} 4... Bg7 {[%clk 0:02:57.3]} 5. Qa4+ {[%clk 0:02:59.2]}
5... Bd7 {[%clk 0:02:44]} 6. Qb3 {[%clk 0:02:59.1]} 6... dxc4 {[%clk 0:02:44.1]}
7. Qxc4 {[%clk 0:02:59.2]} 7... Be6 {[%clk 0:02:44.4]} 8. Qb5+ {[%clk
0:02:52.2]} 8... Bd7 {[%clk 0:02:43.2]} 9. Qxb7 {[%clk 0:02:48.1]} 9... Nc6
{[%clk 0:02:42.3]} 10. Qb3 {[%clk 0:02:46.6]} 10... Rb8 {[%clk 0:02:36.3]} 11.
Qd1 {[%clk 0:02:46.1]} 11... Bf5 {[%clk 0:02:32.5]} 12. a3 {[%clk 0:02:28.6]}
12... O-O {[%clk 0:02:29.1]} 13. e3 {[%clk 0:02:28.3]} 13... e5 {[%clk
0:02:28.7]} 14. Be2 {[%clk 0:02:23.5]} 14... exd4 {[%clk 0:02:22.1]} 15. Nxd4
{[%clk 0:02:13.3]} 15... Nxd4 {[%clk 0:02:21.8]} 16. Qxd4 {[%clk 0:01:58.7]}
16... Qxd4 {[%clk 0:02:18.5]} 17. exd4 {[%clk 0:01:58.6]} 17... Rfd8 {[%clk
0:02:17.9]} 18. O-O {[%clk 0:01:54.4]} 18... Rxd4 {[%clk 0:02:09.9]} 19. Be3
{[%clk 0:01:53.9]} 19... Rdd8 {[%clk 0:02:09.4]} 20. Rfd1 {[%clk 0:01:18.7]}
20... a5 {[%clk 0:02:01.8]} 21. Rxd8+ {[%clk 0:01:12.5]} 21... Rxd8 {[%clk
0:02:00]} 22. Rd1 {[%clk 0:01:10]} 22... Rxd1+ {[%clk 0:01:51.7]} 23. Nxd1
{[%clk 0:00:58.9]} 23... Nd5 {[%clk 0:01:50.1]} 24. Bd2 {[%clk 0:00:57.4]} 24...
Bc2 {[%clk 0:01:44.5]} 25. Bxa5 {[%clk 0:00:56.5]} 25... Bxd1 {[%clk 0:01:41.8]}
26. Bxd1 {[%clk 0:00:57.4]} 26... Bxb2 {[%clk 0:01:41.5]} 27. a4 {[%clk
0:00:56.5]} 27... c5 {[%clk 0:01:19]} 28. Bb3 {[%clk 0:00:54.1]} 28... Nc3
{[%clk 0:01:03]} 29. Kf1 {[%clk 0:00:23.4]} 29... c4 {[%clk 0:00:45.4]} 30. Bxc3
{[%clk 0:00:22.7]} 30... Bxc3 {[%clk 0:00:44.4]} 31. Bxc4 {[%clk 0:00:23.3]}
31... Kg7 {[%clk 0:00:41.5]} 32. Ke2 {[%clk 0:00:23.7]} 32... Bd4 {[%clk
0:00:40.1]} 33. f3 {[%clk 0:00:20.8]} 33... f5 {[%clk 0:00:39.5]} 34. Kd3 {[%clk
0:00:20.9]} 34... Bg1 {[%clk 0:00:36.7]} 35. h3 {[%clk 0:00:19.7]} 35... Kf6
{[%clk 0:00:35.5]} 36. a5 {[%clk 0:00:19.8]} 36... Kg5 {[%clk 0:00:34.6]} 37. a6
{[%clk 0:00:19.2]} 37... Kh4 {[%clk 0:00:32.5]} 38. Bg8 {[%clk 0:00:17.3]} 38...
Kg3 {[%clk 0:00:19.8]} 39. Bxh7 {[%clk 0:00:16.7]} 39... Kxg2 {[%clk 0:00:20.2]}
40. h4 {[%clk 0:00:15]} 40... Kxf3 {[%clk 0:00:11.4]} 41. Bxg6 {[%clk
0:00:15.1]} 41... Kg4 {[%clk 0:00:11.6]} 42. h5 {[%clk 0:00:15]} 42... Kg5
{[%clk 0:00:12]} 43. Ke2 {[%clk 0:00:14.7]} 43... f4 {[%clk 0:00:11.5]} 44. Kf3
{[%clk 0:00:14]} 44... Ba7 {[%clk 0:00:11]} 45. Ke4 {[%clk 0:00:13.7]} 45... Bb6
{[%clk 0:00:10.4]} 46. Be8 {[%clk 0:00:13]} 46... Ba7 {[%clk 0:00:10.3]} 47. Kf3
{[%clk 0:00:11.9]} 47... Bb6 {[%clk 0:00:10.2]} 48. Kg2 {[%clk 0:00:07.9]} 48...
Ba7 {[%clk 0:00:10.1]} 49. Kf3 {[%clk 0:00:06.5]} 49... Bb6 {[%clk 0:00:10.1]}
50. Bg6 {[%clk 0:00:05.8]} 50... Ba7 {[%clk 0:00:10]} 51. Ke4 {[%clk 0:00:04.9]}
51... Bb6 {[%clk 0:00:09.9]} 52. Be8 {[%clk 0:00:05.5]} 52... Ba7 {[%clk
0:00:09.9]} 53. Kd5 {[%clk 0:00:05.6]} 53... f3 {[%clk 0:00:09.3]} 54. Bb5
{[%clk 0:00:01.8]} 54... Kxh5 {[%clk 0:00:07.8]} 55. Kc6 {[%clk 0:00:01.9]}
55... Kg4 {[%clk 0:00:07.4]} 56. Kb7 {[%clk 0:00:02]} 56... Be3 {[%clk
0:00:07.3]} 57. a7 {[%clk 0:00:02.9]} 57... Bxa7 {[%clk 0:00:07.2]} 58. Kxa7
{[%clk 0:00:03.8]} 58... f2 {[%clk 0:00:07.8]} 59. Kb7 {[%clk 0:00:04.5]} 59...
Kg3 {[%clk 0:00:08.1]} 60. Bf1 {[%clk 0:00:05.1]} 60... Kf3 {[%clk 0:00:08.2]}
61. Kc6 {[%clk 0:00:05.5]} 61... Ke3 {[%clk 0:00:09.1]} 62. Kd5 {[%clk
0:00:05.8]} 62... Kd2 {[%clk 0:00:10]} 63. Ke4 {[%clk 0:00:05.3]} 63... Ke1
{[%clk 0:00:10.9]} 64. Bg2 {[%clk 0:00:05.4]} 64... f1=Q {[%clk 0:00:10.8]} 65.
Bxf1 {[%clk 0:00:05.6]} 1/2-1/2

[Event "Late-Titled-Tuesday-Blitz-June-18-2024"]
[Site "Chess.com"]
[Date "2024.06.18"]
[Round "11"]
[White "temus_galaktionov"]
[Black "slidingknight2775"]
[Result "1-0"]
[WhiteElo "2881"]
[BlackElo "2711"]
[TimeControl "180+1"]
[EndTime "16:07:43 PDT"]
[Termination "temus_galaktionov won by checkmate"]

1. d4 {[%clk 0:03:00.9]} 1... Nf6 {[%clk 0:03:00.1]} 2. Nf3 {[%clk 0:02:58.9]}
2... e6 {[%clk 0:03:00.3]} 3. c4 {[%clk 0:02:58.5]} 3... d5 {[%clk 0:03:00.4]}
4. Nc3 {[%clk 0:02:58.3]} 4... c6 {[%clk 0:03:00.8]} 5. e3 {[%clk 0:02:58.2]}
5... Nbd7 {[%clk 0:03:00.6]} 6. Qc2 {[%clk 0:02:53.7]} 6... Bd6 {[%clk
0:03:00.3]} 7. b3 {[%clk 0:02:54.2]} 7... O-O {[%clk 0:02:59.4]} 8. Be2 {[%clk
0:02:53.9]} 8... e5 {[%clk 0:02:55.6]} 9. cxd5 {[%clk 0:02:53.4]} 9... cxd5
{[%clk 0:02:56.5]} 10. Nb5 {[%clk 0:02:05.2]} 10... Bb4+ {[%clk 0:02:55.9]} 11.
Bd2 {[%clk 0:02:05.1]} 11... Bxd2+ {[%clk 0:02:55.7]} 12. Nxd2 {[%clk
0:02:05.9]} 12... exd4 {[%clk 0:02:54.5]} 13. Nxd4 {[%clk 0:02:04.4]} 13... Ne5
{[%clk 0:02:54.8]} 14. h3 {[%clk 0:02:01.8]} 14... Bd7 {[%clk 0:02:34.9]} 15.
O-O {[%clk 0:02:01.7]} 15... Rc8 {[%clk 0:02:33.5]} 16. Qb2 {[%clk 0:02:01.5]}
16... Qe7 {[%clk 0:02:33.8]} 17. Rfc1 {[%clk 0:01:57.3]} 17... a6 {[%clk
0:02:30.3]} 18. Rxc8 {[%clk 0:01:53.5]} 18... Rxc8 {[%clk 0:02:31.2]} 19. Rc1
{[%clk 0:01:53.4]} 19... Rxc1+ {[%clk 0:02:25.5]} 20. Qxc1 {[%clk 0:01:54.3]}
20... Nc6 {[%clk 0:02:25.9]} 21. N2f3 {[%clk 0:01:52.2]} 21... Qd6 {[%clk
0:02:00.4]} 22. Nxc6 {[%clk 0:01:47.8]} 22... Bxc6 {[%clk 0:02:01.3]} 23. Nd4
{[%clk 0:01:46.3]} 23... Bd7 {[%clk 0:01:51.9]} 24. Bf3 {[%clk 0:01:32.5]} 24...
h5 {[%clk 0:01:35.8]} 25. Qc3 {[%clk 0:01:24.1]} 25... g6 {[%clk 0:01:27.4]} 26.
b4 {[%clk 0:01:21.3]} 26... Ne4 {[%clk 0:01:25.1]} 27. Bxe4 {[%clk 0:01:10.5]}
27... dxe4 {[%clk 0:01:25.2]} 28. a3 {[%clk 0:01:08.5]} 28... h4 {[%clk
0:01:13.1]} 29. Qc2 {[%clk 0:00:59.8]} 29... Qe5 {[%clk 0:00:57.6]} 30. a4
{[%clk 0:00:43.8]} 30... g5 {[%clk 0:00:35.6]} 31. a5 {[%clk 0:00:42.2]} 31...
g4 {[%clk 0:00:33.7]} 32. hxg4 {[%clk 0:00:40.8]} 32... Bxg4 {[%clk 0:00:34.6]}
33. Qc5 {[%clk 0:00:26.7]} 33... Qxc5 {[%clk 0:00:31.4]} 34. bxc5 {[%clk
0:00:27.6]} 34... Bd7 {[%clk 0:00:30.6]} 35. Kh2 {[%clk 0:00:27.7]} 35... Kg7
{[%clk 0:00:23.9]} 36. f3 {[%clk 0:00:24.3]} 36... exf3 {[%clk 0:00:17]} 37.
gxf3 {[%clk 0:00:24.1]} 37... Kf6 {[%clk 0:00:16.8]} 38. f4 {[%clk 0:00:24.5]}
38... h3 {[%clk 0:00:07]} 39. Kg3 {[%clk 0:00:24]} 39... Ke7 {[%clk 0:00:06.6]}
40. e4 {[%clk 0:00:22.2]} 40... Kf6 {[%clk 0:00:06.3]} 41. Ne2 {[%clk
0:00:16.6]} 41... Bc6 {[%clk 0:00:03.5]} 42. Nc3 {[%clk 0:00:16.9]} 42... Bd7
{[%clk 0:00:01.8]} 43. Nd5+ {[%clk 0:00:16.3]} 43... Kg6 {[%clk 0:00:02.4]} 44.
Nc3 {[%clk 0:00:15.5]} 44... Kh5 {[%clk 0:00:02.9]} 45. Nd1 {[%clk 0:00:14.2]}
45... h2 {[%clk 0:00:03.2]} 46. Nf2 {[%clk 0:00:13.4]} 46... Bc6 {[%clk
0:00:03.3]} 47. Kxh2 {[%clk 0:00:13.1]} 47... Kh4 {[%clk 0:00:03.6]} 48. Kg2
{[%clk 0:00:10.5]} 48... f5 {[%clk 0:00:03.7]} 49. Kf3 {[%clk 0:00:10.6]} 49...
Kh5 {[%clk 0:00:02.3]} 50. Ke3 {[%clk 0:00:10.7]} 50... fxe4 {[%clk 0:00:02.6]}
51. Nxe4 {[%clk 0:00:11.6]} 51... Kg6 {[%clk 0:00:03.3]} 52. Nd6 {[%clk
0:00:11.7]} 52... Kf6 {[%clk 0:00:03.9]} 53. Kd4 {[%clk 0:00:11.9]} 53... Ke6
{[%clk 0:00:04.5]} 54. Nc4 {[%clk 0:00:11.8]} 54... Kf5 {[%clk 0:00:04]} 55. Ke3
{[%clk 0:00:12.2]} 55... Bd5 {[%clk 0:00:03.6]} 56. Nb6 {[%clk 0:00:12.4]} 56...
Bc6 {[%clk 0:00:03.9]} 57. Nc4 {[%clk 0:00:12.8]} 57... Ke6 {[%clk 0:00:03.8]}
58. Ne5 {[%clk 0:00:13.1]} 58... Kd5 {[%clk 0:00:03.9]} 59. Nxc6 {[%clk
0:00:13]} 59... Kxc6 {[%clk 0:00:01.9]} 60. Ke4 {[%clk 0:00:12.4]} 60... Kxc5
{[%clk 0:00:02.5]} 61. Ke5 {[%clk 0:00:13]} 61... Kc6 {[%clk 0:00:03.1]} 62. Ke6
{[%clk 0:00:13.3]} 62... b6 {[%clk 0:00:03.7]} 63. f5 {[%clk 0:00:13.2]} 63...
bxa5 {[%clk 0:00:04.1]} 64. f6 {[%clk 0:00:14.1]} 64... a4 {[%clk 0:00:04.8]}
65. f7 {[%clk 0:00:15]} 65... a3 {[%clk 0:00:05.5]} 66. f8=Q {[%clk 0:00:15.9]}
66... a2 {[%clk 0:00:06.2]} 67. Qa3 {[%clk 0:00:15.8]} 67... Kb5 {[%clk
0:00:06.9]} 68. Qxa2 {[%clk 0:00:16.1]} 68... a5 {[%clk 0:00:07.8]} 69. Kd5
{[%clk 0:00:16.6]} 69... Kb4 {[%clk 0:00:08.7]} 70. Kd4 {[%clk 0:00:16.9]} 70...
a4 {[%clk 0:00:09.6]} 71. Qb2+ {[%clk 0:00:17.1]} 71... Ka5 {[%clk 0:00:10.5]}
72. Kc5 {[%clk 0:00:17.6]} 72... Ka6 {[%clk 0:00:11.4]} 73. Qb6# {[%clk
0:00:17.8]} 1-0

[Event "Late-Titled-Tuesday-Blitz-June-18-2024"]
[Site "Chess.com"]
[Date "2024.06.18"]
[Round "11"]
[White "katharinareinecke"]
[Black "Connectedcloud"]
[Result "0-1"]
[WhiteElo "2042"]
[BlackElo "2311"]
[TimeControl "180+1"]
[EndTime "16:07:50 PDT"]
[Termination "Connectedcloud won by checkmate"]

1. d4 {[%clk 0:03:00.9]} 1... Nf6 {[%clk 0:02:59.8]} 2. Nf3 {[%clk 0:03:00.7]}
2... g6 {[%clk 0:02:59.1]} 3. g3 {[%clk 0:03:00.9]} 3... Bg7 {[%clk 0:02:59.5]}
4. Bg2 {[%clk 0:03:01.3]} 4... O-O {[%clk 0:03:00.2]} 5. O-O {[%clk 0:03:01.7]}
5... d6 {[%clk 0:03:00.9]} 6. c4 {[%clk 0:03:02]} 6... Nc6 {[%clk 0:02:58.8]} 7.
Nc3 {[%clk 0:03:01.5]} 7... a6 {[%clk 0:02:57.7]} 8. e4 {[%clk 0:03:00.5]} 8...
Rb8 {[%clk 0:02:53.5]} 9. a3 {[%clk 0:03:00.1]} 9... e5 {[%clk 0:02:24.4]} 10.
d5 {[%clk 0:02:53.7]} 10... Ne7 {[%clk 0:02:21.9]} 11. b4 {[%clk 0:02:50.4]}
11... Nd7 {[%clk 0:02:18.8]} 12. Bb2 {[%clk 0:02:38.7]} 12... b5 {[%clk
0:02:13.5]} 13. Nd2 {[%clk 0:02:30.1]} 13... c6 {[%clk 0:02:00.9]} 14. dxc6
{[%clk 0:02:27.4]} 14... Nxc6 {[%clk 0:02:00.4]} 15. cxb5 {[%clk 0:02:17.5]}
15... axb5 {[%clk 0:01:53.5]} 16. Nb3 {[%clk 0:02:16]} 16... Nb6 {[%clk
0:01:50.5]} 17. Nd5 {[%clk 0:02:05.5]} 17... Nc4 {[%clk 0:01:49.8]} 18. Bc3
{[%clk 0:02:02.3]} 18... Be6 {[%clk 0:01:48.9]} 19. f4 {[%clk 0:01:46]} 19...
Bxd5 {[%clk 0:01:47.5]} 20. Qxd5 {[%clk 0:01:43.6]} 20... Ne7 {[%clk 0:01:45.1]}
21. Qd3 {[%clk 0:01:40.2]} 21... Qb6+ {[%clk 0:01:38.1]} 22. Kh1 {[%clk
0:01:39.6]} 22... Ne3 {[%clk 0:01:37.3]} 23. Rfe1 {[%clk 0:01:23.3]} 23... Nxg2
{[%clk 0:01:37.1]} 24. Kxg2 {[%clk 0:01:24.2]} 24... Rfd8 {[%clk 0:01:34.2]} 25.
Rad1 {[%clk 0:01:22.8]} 25... Rbc8 {[%clk 0:01:31.7]} 26. Na5 {[%clk 0:01:15.5]}
26... Nc6 {[%clk 0:01:25]} 27. Nxc6 {[%clk 0:01:15.6]} 27... Qxc6 {[%clk
0:01:25.1]} 28. fxe5 {[%clk 0:01:13.6]} 28... Qxc3 {[%clk 0:01:22.4]} 29. exd6
{[%clk 0:01:06.4]} 29... Qxd3 {[%clk 0:01:18]} 30. Rxd3 {[%clk 0:01:05.8]} 30...
Rc6 {[%clk 0:01:18.3]} 31. e5 {[%clk 0:01:04.6]} 31... Kf8 {[%clk 0:01:16.2]}
32. e6 {[%clk 0:00:58.1]} 32... Rdxd6 {[%clk 0:01:10.7]} 33. Rxd6 {[%clk
0:00:46.4]} 33... Rxd6 {[%clk 0:01:10.7]} 34. exf7 {[%clk 0:00:46.6]} 34... Kxf7
{[%clk 0:01:10.7]} 35. Rc1 {[%clk 0:00:45.1]} 35... Rd2+ {[%clk 0:01:10.1]} 36.
Kh3 {[%clk 0:00:43.3]} 36... Rd5 {[%clk 0:01:08]} 37. Rc7+ {[%clk 0:00:40.1]}
37... Kf6 {[%clk 0:01:07.1]} 38. Rc6+ {[%clk 0:00:40.3]} 38... Kg5 {[%clk
0:01:06]} 39. Rc7 {[%clk 0:00:40.6]} 39... Kh6 {[%clk 0:01:05.7]} 40. Rb7 {[%clk
0:00:36.1]} 40... Bb2 {[%clk 0:01:03.3]} 41. Ra7 {[%clk 0:00:33.5]} 41... Rd3
{[%clk 0:01:01]} 42. a4 {[%clk 0:00:33.4]} 42... Ra3 {[%clk 0:01:00.7]} 43. a5
{[%clk 0:00:29.6]} 43... Bc3 {[%clk 0:01:00.7]} 44. Rb7 {[%clk 0:00:27.3]} 44...
Bxb4 {[%clk 0:01:00.5]} 45. Rxb5 {[%clk 0:00:27.5]} 45... Bxa5 {[%clk
0:01:00.9]} 46. Kg2 {[%clk 0:00:24.5]} 46... Ra2+ {[%clk 0:01:00.6]} 47. Kh3
{[%clk 0:00:23.7]} 47... Bd8 {[%clk 0:00:59.8]} 48. Rd5 {[%clk 0:00:23]} 48...
Bf6 {[%clk 0:00:59.5]} 49. Rd6 {[%clk 0:00:21.4]} 49... Bg5 {[%clk 0:00:58.5]}
50. Rd1 {[%clk 0:00:20.6]} 50... Be3 {[%clk 0:00:58.4]} 51. Re1 {[%clk
0:00:18.2]} 51... Bf2 {[%clk 0:00:56.8]} 52. Rf1 {[%clk 0:00:18.5]} 52... Kg5
{[%clk 0:00:54.7]} 53. Rd1 {[%clk 0:00:17.3]} 53... h5 {[%clk 0:00:52.3]} 54.
Rd5+ {[%clk 0:00:17.3]} 54... Kh6 {[%clk 0:00:52.6]} 55. Rd1 {[%clk 0:00:17.9]}
55... Be3 {[%clk 0:00:51.1]} 56. Re1 {[%clk 0:00:18]} 56... Ra3 {[%clk
0:00:50.5]} 57. Rd1 {[%clk 0:00:16.8]} 57... Ra6 {[%clk 0:00:49.2]} 58. Re1
{[%clk 0:00:16.3]} 58... Re6 {[%clk 0:00:48.4]} 59. Kg2 {[%clk 0:00:14.7]} 59...
g5 {[%clk 0:00:47.5]} 60. Kf3 {[%clk 0:00:14.4]} 60... g4+ {[%clk 0:00:47.9]}
61. Kg2 {[%clk 0:00:14.2]} 61... Kg5 {[%clk 0:00:47.9]} 62. h3 {[%clk
0:00:13.6]} 62... Re5 {[%clk 0:00:38.5]} 63. hxg4 {[%clk 0:00:13.5]} 63... hxg4
{[%clk 0:00:39.1]} 64. Re2 {[%clk 0:00:13.6]} 64... Bd4 {[%clk 0:00:36.4]} 65.
Rc2 {[%clk 0:00:13.3]} 65... Re3 {[%clk 0:00:34.4]} 66. Rd2 {[%clk 0:00:13.2]}
66... Be5 {[%clk 0:00:33.8]} 67. Rd5 {[%clk 0:00:13.2]} 67... Kf5 {[%clk
0:00:32.9]} 68. Rb5 {[%clk 0:00:12.5]} 68... Rxg3+ {[%clk 0:00:32.9]} 69. Kf2
{[%clk 0:00:12.4]} 69... Rf3+ {[%clk 0:00:33.4]} 70. Ke2 {[%clk 0:00:12.2]}
70... Rf4 {[%clk 0:00:33]} 71. Ke3 {[%clk 0:00:11.7]} 71... g3 {[%clk
0:00:31.5]} 72. Rb7 {[%clk 0:00:09.8]} 72... g2 {[%clk 0:00:28.1]} 73. Rb1
{[%clk 0:00:09.7]} 73... Rf1 {[%clk 0:00:27.5]} 74. Rxf1+ {[%clk 0:00:07.4]}
74... gxf1=Q {[%clk 0:00:25.7]} 75. Kd2 {[%clk 0:00:07.8]} 75... Bf4+ {[%clk
0:00:25.1]} 76. Kc3 {[%clk 0:00:07.7]} 76... Qc1+ {[%clk 0:00:25.6]} 77. Kd4
{[%clk 0:00:07.7]} 77... Be3+ {[%clk 0:00:25.1]} 78. Kd5 {[%clk 0:00:07.7]}
78... Qc5# {[%clk 0:00:25.6]} 0-1

[Event "Late-Titled-Tuesday-Blitz-June-18-2024"]
[Site "Chess.com"]
[Date "2024.06.18"]
[Round "11"]
[White "ATM622"]
[Black "Korchmar_Vasiliy"]
[Result "1/2-1/2"]
[WhiteElo "2544"]
[BlackElo "2638"]
[TimeControl "180+1"]
[EndTime "16:07:51 PDT"]
[Termination "Game drawn by stalemate"]

1. d4 {[%clk 0:03:00.9]} 1... Nf6 {[%clk 0:02:59.8]} 2. c4 {[%clk 0:03:00.3]}
2... g6 {[%clk 0:03:00.5]} 3. g3 {[%clk 0:03:00.4]} 3... c6 {[%clk 0:02:57.5]}
4. Bg2 {[%clk 0:03:00]} 4... d5 {[%clk 0:02:58.2]} 5. Nd2 {[%clk 0:02:59.6]}
5... Bg7 {[%clk 0:02:58.4]} 6. Ngf3 {[%clk 0:02:59.3]} 6... O-O {[%clk
0:02:59.1]} 7. O-O {[%clk 0:02:59.4]} 7... a5 {[%clk 0:02:59.8]} 8. b3 {[%clk
0:02:59]} 8... Bf5 {[%clk 0:02:58.8]} 9. Bb2 {[%clk 0:02:58.5]} 9... Nbd7 {[%clk
0:02:57.9]} 10. Ne5 {[%clk 0:02:53.5]} 10... a4 {[%clk 0:02:56.4]} 11. a3 {[%clk
0:02:53.7]} 11... axb3 {[%clk 0:02:55]} 12. Qxb3 {[%clk 0:02:53]} 12... Ra7
{[%clk 0:02:47.6]} 13. cxd5 {[%clk 0:02:49.1]} 13... cxd5 {[%clk 0:02:31.6]} 14.
Rfc1 {[%clk 0:02:44.7]} 14... e6 {[%clk 0:02:25.5]} 15. a4 {[%clk 0:02:39.6]}
15... Nxe5 {[%clk 0:02:20.5]} 16. dxe5 {[%clk 0:02:38.2]} 16... Nd7 {[%clk
0:02:21.1]} 17. f4 {[%clk 0:02:33]} 17... g5 {[%clk 0:02:08.4]} 18. Bd4 {[%clk
0:02:30.4]} 18... b6 {[%clk 0:02:04.8]} 19. e3 {[%clk 0:02:26.4]} 19... gxf4
{[%clk 0:01:58.3]} 20. exf4 {[%clk 0:02:25]} 20... f6 {[%clk 0:01:55.7]} 21. Re1
{[%clk 0:02:13.3]} 21... fxe5 {[%clk 0:01:55.4]} 22. fxe5 {[%clk 0:02:13.4]}
22... Nc5 {[%clk 0:01:49.5]} 23. Qb5 {[%clk 0:01:52.9]} 23... Ra5 {[%clk
0:01:27.6]} 24. Qc6 {[%clk 0:01:37]} 24... Qa8 {[%clk 0:01:05.3]} 25. Qxb6
{[%clk 0:01:31.7]} 25... Rb8 {[%clk 0:00:57.9]} 26. Qc7 {[%clk 0:01:25]} 26...
Rc8 {[%clk 0:00:46.6]} 27. Qe7 {[%clk 0:01:21.3]} 27... Nd3 {[%clk 0:00:23.2]}
28. Rf1 {[%clk 0:01:19]} 28... Rf8 {[%clk 0:00:21.1]} 29. h3 {[%clk 0:00:46.4]}
29... Rxa4 {[%clk 0:00:20.9]} 30. g4 {[%clk 0:00:46.6]} 30... Rf7 {[%clk
0:00:15.7]} 31. Qd6 {[%clk 0:00:21.4]} 31... Bf8 {[%clk 0:00:15.9]} 32. Qb6
{[%clk 0:00:18.8]} 32... Bg6 {[%clk 0:00:09.5]} 33. Qxe6 {[%clk 0:00:18.7]}
33... Rxa1 {[%clk 0:00:09.1]} 34. Rxa1 {[%clk 0:00:18.6]} 34... Qb8 {[%clk
0:00:07.2]} 35. Bxd5 {[%clk 0:00:16.9]} 35... Nf4 {[%clk 0:00:07.1]} 36. Qb6
{[%clk 0:00:04.3]} 36... Qc8 {[%clk 0:00:02.9]} 37. Qc6 {[%clk 0:00:04.3]} 37...
Qb8 {[%clk 0:00:02.6]} 38. Bxf7+ {[%clk 0:00:04.5]} 38... Bxf7 {[%clk
0:00:03.5]} 39. Rf1 {[%clk 0:00:04.7]} 39... Nxh3+ {[%clk 0:00:02.8]} 40. Kg2
{[%clk 0:00:05.2]} 40... Ng5 {[%clk 0:00:03.7]} 41. Qc2 {[%clk 0:00:03.3]} 41...
Qd8 {[%clk 0:00:03.8]} 42. Nf3 {[%clk 0:00:03.3]} 42... Bd5 {[%clk 0:00:03.2]}
43. Qe2 {[%clk 0:00:02.2]} 43... Nxf3 {[%clk 0:00:03.6]} 44. Rxf3 {[%clk
0:00:02.6]} 44... Bxf3+ {[%clk 0:00:04.2]} 45. Qxf3 {[%clk 0:00:02.7]} 45...
Qxd4 {[%clk 0:00:04.8]} 46. Qf5 {[%clk 0:00:03.2]} 46... Qd2+ {[%clk 0:00:04.7]}
47. Kh3 {[%clk 0:00:03.3]} 47... Qh6+ {[%clk 0:00:04.1]} 48. Kg2 {[%clk
0:00:03.6]} 48... Qg6 {[%clk 0:00:04.6]} 49. Qf3 {[%clk 0:00:02.2]} 49... Qc2+
{[%clk 0:00:04.9]} 50. Kh3 {[%clk 0:00:02.3]} 50... Qg6 {[%clk 0:00:05.8]} 51.
Qd5+ {[%clk 0:00:02.3]} 51... Qf7 {[%clk 0:00:05.7]} 52. e6 {[%clk 0:00:02.2]}
52... Qe7 {[%clk 0:00:06.3]} 53. g5 {[%clk 0:00:02.5]} 53... Bg7 {[%clk
0:00:05.2]} 54. Kg4 {[%clk 0:00:02.8]} 54... Bf8 {[%clk 0:00:05.6]} 55. Kf5
{[%clk 0:00:02.7]} 55... Qc5 {[%clk 0:00:04.5]} 56. Qxc5 {[%clk 0:00:01.8]}
56... Bxc5 {[%clk 0:00:05.4]} 57. g6 {[%clk 0:00:01.5]} 57... h6 {[%clk
0:00:03.3]} 58. e7 {[%clk 0:00:01.7]} 58... Bxe7 {[%clk 0:00:03.2]} 59. g7
{[%clk 0:00:01.9]} 59... Kh7 {[%clk 0:00:03.1]} 60. Kg4 {[%clk 0:00:02]} 60...
Kxg7 {[%clk 0:00:03.2]} 61. Kh3 {[%clk 0:00:02.3]} 61... Kg6 {[%clk 0:00:03.7]}
62. Kg2 {[%clk 0:00:03.2]} 62... h5 {[%clk 0:00:04.5]} 63. Kh1 {[%clk
0:00:04.1]} 63... Kg5 {[%clk 0:00:05.3]} 64. Kg1 {[%clk 0:00:05]} 64... Kg4
{[%clk 0:00:06.2]} 65. Kh1 {[%clk 0:00:05.9]} 65... h4 {[%clk 0:00:07.1]} 66.
Kg1 {[%clk 0:00:06.8]} 66... h3 {[%clk 0:00:08]} 67. Kh1 {[%clk 0:00:07.7]}
67... Kg3 {[%clk 0:00:08.9]} 68. Kg1 {[%clk 0:00:08.6]} 68... h2+ {[%clk
0:00:09.8]} 69. Kh1 {[%clk 0:00:09.5]} 69... Kh3 {[%clk 0:00:10.5]} 1/2-1/2